Cogmind - Beta 16 --- EXPLORER MODE // 2025.12.14 @ 22:17:01 Player: Dylab Result: Destroyed by G-47 Trooper with Particle Gun Performance ------------- Evolutions (0) 0 Regions Visited (1) 200 Robots Destroyed (7) 35 Value Destroyed (176) 176 Prototype IDs (0) 0 Alien Tech Used (0) 0 Bonus (0) 0 TOTAL SCORE: 411 Bonus ------- None Cogmind --------- Core Integrity 0/250 Matter 300/300 Energy 100/100 System Corruption 2% Temperature Cool (9) Movement Core (200) Ox3 Location -10/Materials Parts ------- > --- POWER (1) -------- (None) > --- PROPULSION (2) --- (None) > --- UTILITY (3) ------ Medium Storage Unit Targeting Computer Propulsion Shielding > --- WEAPON (2) ------- (None) > --- INVENTORY (10) --- Light Ion Engine Wheel Wheel Wheel Wheel Structural Scanner Core Shielding Mining Laser Peak State ------------ > --- POWER ------------ Light Nuclear Core > --- PROPULSION ------- Wheel Wheel > --- UTILITY ---------- Medium Storage Unit Targeting Computer Propulsion Shielding > --- WEAPON ----------- Light Assault Rifle > --- INVENTORY -------- Light Ion Engine Wheel Wheel Wheel Wheel Structural Scanner Core Shielding Mining Laser [Rating: 9] Favorites ----------- Power Light Ion Engine Engine Light Ion Engine Power Core Light Nuclear Core Propulsion Wheel Leg Aluminum Leg Wheel Wheel Utility Medium Storage Unit Device Sensor Array Storage Medium Storage Unit Processor Targeting Computer Protection Propulsion Shielding Weapon Light Assault Rifle Ballistic Gun Light Assault Rifle Special Weapon Mining Laser Build | -11 -10 ------- Run | Yrd Mat Slots Evolved 1 | . 1 Power . | . . Propulsion . | . . Utility 1 | . 1 Weapon . | . . Parts Attached 13 | 7 6 Power 2 | 1 1 Engine 1 | 1 . Core 1 | . 1 Reactor . | . . Propulsion 4 | 2 2 Treads . | . . Leg 2 | 2 . Wheel 2 | . 2 Hover . | . . Flight . | . . Utility 4 | 2 2 Device 1 | 1 . Storage 1 | 1 . Processor 1 | . 1 Hackware . | . . Protection 1 | . 1 Artifact . | . . Weapon 3 | 2 1 Energy Gun . | . . Energy Cannon . | . . Ballistic Gun 2 | 2 . Ballistic Cannon . | . . Launcher . | . . Special Weapon 1 | . 1 Impact Weapon . | . . Slashing Weapon . | . . Piercing Weapon . | . . Special Melee Weapon . | . . Unidentified Prototypes . | . . Parts Lost 5 | . 5 Power 2 | . 2 Propulsion 2 | . 2 Utility . | . . Weapon 1 | . 1 Highest Loss Streak 3 | . 3 To Critical Strikes . | . . Average Backups 5 | 1 6 Power . | . 1 Propulsion 2 | . 2 Utility 1 | . 1 Weapon . | . . Tool/Special . | . . Unused Backups 7 | . 7 Power 1 | . 1 Propulsion 4 | . 4 Utility 2 | . 2 Weapon . | . . Tool/Special . | . . Average Slot Usage (%) 86 | . 86 Engine 7 | . 7 Core 2 | . 2 Leg 5 | . 5 Wheel 15 | . 15 Device 2 | . 2 Storage 12 | . 12 Processor 11 | . 11 Protection 9 | . 9 Ballistic Gun 18 | . 18 Peak Build Rating 9 | 7 9 Average Rating 6 | 4 7 On Entrance 3 | . 7 Avg Prop Armor Cover (%) . | . . Naked Turns . | . . Heaviest Build 17 | 17 17 Greatest Support 20 | 20 20 Greatest Overweight (x) 5 | 4 5 Average Overweight (x) . | 1 . Largest Inventory Capacity 10 | 10 10 Average Capacity 9 | 9 10 Most Carried 10 | 4 10 Average Carried 5 | 1 6 Final Capacity 10 | 10 10 Final Carried 8 | 4 8 Class Distribution -------------------- 100% | Hacker-Mutant Dominant Class ---------------- Hacker-Mutant | -10/Materials Resources | -11 -10 ----------- Run | Yrd Mat Matter Collected 435 | 193 242 Remotely . | . . Salvage Created 232 | . 232 Parts 14 | . 14 Haulers Intercepted . | . . Recyclers Shooed 1 | . 1 Parts Field Recycled . | . . Retrieved Matter . | . . Parts Self-Destructed . | . . Prevented . | . . Parts Restored . | . . Kills | -11 -10 ------- Run | Yrd Mat Combat Hostiles Destroyed 6 | . 6 Guns 6 | . 6 Classes Destroyed 3 | . 3 Tunneler 1 | . 1 Swarmer 2 | . 2 Grunt 4 | . 4 Best Kill Streak 3 | . 3 Combat Bots Only 2 | . 2 Max Kills in Single Turn 1 | . 1 Gunslinging . | . . Exploded . | . . Melee . | . . Uniques/NPCs Destroyed . | . . Combat | -11 -10 -------- Run | Yrd Mat Hostile Shots Fired 101 | . 101 Missed 25 | . 25 Hits 76 | . 76 Projectile 76 | . 76 Critical Strikes 3 | . 3 Damage Taken 611 | . 611 Core 260 | . 260 Absorbed by Shields . | . . Redirected to Shielding 23 | . 23 Ignored by Resistances 376 | . 376 Core Remaining (%) 100 | 100 . Volleys Fired 66 | . 66 Largest 2 | . 2 Hottest 40 | . 40 Shots Fired 78 | . 78 Gun 78 | . 78 Cannon . | . . Launcher . | . . Special . | . . Kinetic 78 | . 78 Thermal . | . . Explosive . | . . Electromagnetic . | . . Robot Hit Streak 22 | . 22 Robot Miss Streak 2 | . 2 Penetration Max . | . . Secondary Targets . | . . Shots Hit Robots 67 | . 67 Core Hits 24 | . 24 Critical Kills . | . . Critical Parts Destroyed 1 | . 1 Critical Strikes 1 | . 1 Destroy 1 | . 1 Melee Attacks . | . . Impact . | . . Slashing . | . . Piercing . | . . Sneak Attacks . | . . Combat Hostiles . | . . Follow-up Attacks . | . . Damage Inflicted 622 | . 622 Guns 607 | . 607 Cannons . | . . Explosions . | . . Melee . | . . Ramming 15 | . 15 Kinetic 607 | . 607 Thermal . | . . Explosive . | . . Electromagnetic . | . . Impact . | . . Slashing . | . . Piercing . | . . Highest Corruption 2 | . 2 Average Corruption 1 | . 1 Corruption Purged . | . . Corruption Blocked . | . . Effects 9 | . 9 Message Errors 1 | . 1 Matter Fused 1 | . 1 Heat Flow Errors 1 | . 1 Parts Rejected 1 | . 1 Data Loss (minor) 5 | . 5 Overload Shots . | . . Overflow Damage . | . . Projectiles . | . . Explosions . | . . Melee . | . . Knockbacks . | . . Impact . | . . Kinetic . | . . Secondary . | . . Self-Inflicted Damage 7 | . 7 Shots . | . . Rammed 3 | . 3 Targets Rammed 3 | . 3 Kicked . | . . Crushed . | . . Highest Temperature 240 | . 240 Average Temperature 27 | . 27 Received Heat Transfer 585 | . 585 Effects 1 | . 1 Interference 1 | . 1 Siege Activations . | . . Martial Activations . | . . Shielding Activations . | . . Robots Disrupted . | . . Combat Hostiles . | . . Robots Corrupted . | . . Combat Hostiles . | . . Parts Fried . | . . Impact Corruptions . | . . Robots Melted . | . . Combat Hostiles . | . . Parts Melted . | . . Heat Transferred . | . . Parts Sabotaged . | . . Parts Stolen . | . . Parts Stripped . | . . Power Chain Reactions . | . . Alert | -11 -10 ------- Run | Yrd Mat Maximum Alert Level . | . . Low Security (%) 100 | 100 100 Level 1 . | . . Level 2 . | . . Level 3 . | . . Level 4 . | . . Level 5 . | . . High Security . | . . Max Security . | . . Peak Influence 50 | . 50 Initial . | . . Average 6 | . 9 Influence Increases 172 | . 172 Destroy 0b10 Robot/C 120 | . 120 Destroy 0b10 Robot/NC 5 | . 5 Destroy Leader 30 | . 30 Successful Hack 17 | . 17 Influence Decreases 172 | . 172 Time Decay 155 | . 155 Lost Part 17 | . 17 Squads Dispatched 1 | . 1 Investigation 1 | . 1 Extermination . | . . Reinforcement . | . . Assault . | . . Garrison . | . . Intercept . | . . Searches Triggered . | . . Construction Impeded . | . . Haulers Reinforced . | . . Active Scanning Responses . | . . Cargo Convoy Interrupts . | . . Stealth | -11 -10 --------- Run | Yrd Mat Distress Signals 2 | . 2 Communications Jammed . | . . Distress Signals . | . . Times Spotted 15 | . 15 Peak Tracking Total 5 | . 5 Tactical Retreats . | . . Traps | -11 -10 ------- Run | Yrd Mat Traps Triggered 1 | . 1 Indirectly . | . . Trap Hack Attempts . | . . Triggered . | . . Disarmed . | . . Reprogrammed . | . . Reused . | . . Traps Extracted . | . . Installed . | . . Triggered . | . . Machines | -11 -10 ---------- Run | Yrd Mat Machines Disabled . | . . Max in Single Turn . | . . Machines Repaired . | . . Machines Dismantled . | . . Machines Sabotaged . | . . Overloaded Fab Kills . | . . Hacking | -11 -10 --------- Run | Yrd Mat Machines Accessed 5 | . 5 Terminals 3 | . 3 Fabricators . | . . Repair Stations 1 | . 1 Recycling Units 1 | . 1 Scanalyzers . | . . Garrison Access . | . . Total Hacks 13 | . 13 Successful 10 | . 10 Failed 3 | . 3 Catastrophic 1 | . 1 Database Lockouts . | . . Manual . | . . Terminals 6 | . 6 Fabricators . | . . Repair Stations 3 | . 3 Recycling Units 4 | . 4 Scanalyzers . | . . Garrison Access . | . . Terminal Hacks 5 | . 5 Branch Access Points 1 | . 1 Alert Level 1 | . 1 Dispatch Records 1 | . 1 Patrol Status 1 | . 1 Registered Prototypes 1 | . 1 Fabricator Hacks . | . . Repair Station Hacks 1 | . 1 Refit 1 | . 1 Recycling Unit Hacks 4 | . 4 Recycle Component 1 | . 1 Process 1 | . 1 Report Inventory 2 | . 2 Scanalyzer . | . . Garrison Access Hacks . | . . Unauthorized Hacks . | . . Terminals . | . . Fabricators . | . . Repair Stations . | . . Recycling Units . | . . Scanalyzers . | . . Garrison Access . | . . Data Cores Recovered . | . . Used . | . . Hacking Detections 2 | . 2 Full Trace Events 1 | . 1 Feedback Events 1 | . 1 Corruption 1 | . 1 Feedback Blocked . | . . Robot Schematics Acquired . | . . Robots Built . | . . Authchips . | . . Time . | . . Total Robot Build Rating . | . . Part Schematics Acquired . | . . Parts Built . | . . Authchips . | . . Time . | . . Total Part Build Rating . | . . Part Studies Acquired . | . . Parts Repaired . | . . Time . | . . Parts Recycled 1 | . 1 Recycled Matter 19 | . 19 Retrieved Matter . | . . Retrieved Components . | . . Parts Scanalyzed . | . . Part Schematics Acquired . | . . Parts Damaged . | . . Bothacking | -11 -10 ------------ Run | Yrd Mat Used RIF Installer . | . . Robots Hacked . | . . Non-combat . | . . Combat . | . . Robot Hacks Applied . | . . Relay Couplers Released . | . . Fabnet Peak Effective % . | . . Robots Rewired . | . . Allies Hacked . | . . Hacks Repelled . | . . Allies | -11 -10 -------- Run | Yrd Mat Total Allies . | . . Largest Group . | . . Highest-Rated Group . | . . Highest-Rated Ally . | . . Total Orders . | . . Ally Attacks . | . . Total Damage . | . . Kills . | . . Allies Corrupted . | . . Allies Melted . | . . Intel | -11 -10 ------- Run | Yrd Mat Active Infowar (turns) 165 | 63 102 Sensors 165 | 63 102 Robot Analysis Total . | . . Derelict Logs Recovered . | . . Drone Launches . | . . Drone Recoveries . | . . Exploration | -11 -10 ------------- Run | Yrd Mat Turns Passed 642 | 171 471 Spaces Moved 420 | 102 318 Core 56 | 42 14 Treads . | . . Legs 139 | 60 79 Wheels 225 | . 225 Hover . | . . Flight . | . . Fastest Speed 50 | 50 80 Average Speed 110 | 154 97 Slowest Speed 300 | 250 300 Overloaded Moves . | . . Propulsion Burnouts . | . . Robots Hopped . | . . Potential Cave-ins . | . . Cave-ins Triggered . | . . Exploration Rate (%) 24 | 6 43 Regions Visited 1 Branch Regions . Pre-discovered Areas . | . . Known Exits Taken 1 | 1 . Unknown Exits Taken . | . . Scrap Searched . | . . Spaces Dug . | . . Terrain Destroyed . | . . Melee . | . . Projectile . | . . AOE . | . . Terrain Rammed . | . . Walls Destroyed . | . . Machines Disabled . | . . Actions | -11 -10 --------- Run | Yrd Mat Total 527 | 113 414 Wait 8 | . 8 Move 419 | 101 318 Hop . | . . Pick Up 10 | 5 5 Fast Attach 7 | 6 1 Attach 5 | 1 4 Detach 4 | . 4 Swap 4 | . 4 Drop 1 | . 1 Fire 66 | . 66 Melee . | . . Ram 3 | . 3 Kick . | . . Crush . | . . Escape Stasis . | . . Rewire . | . . Trap . | . . Miscellaneous . | . . Route ------- -11/Scrapyard -10/Materials (discovered 2 exits: *Min x2) History --------- Turn | Location | Event 76 | -11/Scrapyard | Identified exit to Materials 76 | -11/Scrapyard | Discovered exit to Materials (range 15) 172 | -11/Scrapyard | Entered Materials 172 | -10/Materials | Evolved 1 slot: Utility x1 314 | -10/Materials | Build established: Hacker-Mutant 322 | -10/Materials | Identified exit to Mines 322 | -10/Materials | Discovered exit to Mines (range 15) 614 | -10/Materials | Core integrity fell below 50% 633 | -10/Materials | Core integrity fell below 20% 638 | -10/Materials | Lost 3 parts (1p1n1w) 643 | -10/Materials | Destroyed by G-47 Trooper with Particle Gun Last Messages --------------- 00556_ Connecting with Terminal... >>Inventory(Prototypes) Retrieving prototype inventory records... No registered prototype stockpiles. 00557_ K-01 Serf collects debris. 00560_ R-06 Scavenger collects Flight Unit. 00572_ Connecting with Repair Station... >>Refit Scanning configuration... Attaching: Backup Propulsion III x1 00573_ Dropped Backup Propulsion III. 00597_ System corrupted: Component data lost. 00597_ Wheel destroyed. 00600_ Lgt. Assault Rifle destroyed. 00604_ Critical hit (Burn: +37). 00607_ Lgt. Nuclear Core destroyed. 00616_ Slammed into G-47 Trooper. 00632_ Slammed into K-01 Serf. 00634_ Acquired 14 matter. Map ----- +----------------------------------------------------+ | ???????????>??????????????????????????? | | ??????????????????????????????????????? | | ??????????????????????????????????????? | | ??????????????????????????????????????? | | ??????????????????????????????????????? | | ??????????????????????????????? ????? | | ?????????????????????????????? ????? | | ??????????????????????????????# ????? | | ??????????????????????????????# #???? | | ??????????????????????????????# #???? | | ???????????????? ???????????# #???? | | ??????????????? #??????????# #???? | | ??????????????? #??????????# #???? | | ???????????????# #??????????# #???? | | ???????????????# ############ #???? | | ???????????????+ ! #???? | | ???????????????# #???? | | ???????????????# ^ ##### | | ???????????????# """^ """ """% | | ???????????????# """^ """ """ | | ???????????????# """ """ ^""" | | ?????????#?????# ^ ^ #### | | ?????????# ##### #??? | | ?????????# ! r #??? | | ?????????# !=wg #??? | | ?????????# |@= g r * #??? | | ?????????# ########+######T### #??? | | ?????????# ????# ###?# #??? | | ???????????????# #???# ?? | | ???????????????# #???# | | ???????????????# """ #???# | | ???????????????# """ "="" #???# #### | | ???????????????# """ "R"" #???# #??? | | ???????????????# """ #???# #??? | | ???????????????#############???# #??? | | ???????????????????????????????? #??? | | ???????????????????????????????? ???? | | ??????????????????????????????????????? | | ??????????????????????????????????????? | | ??????????????????????????????????????? | | ??????????????????????????????????????? | | ??????????????????????????????????????? | | ??????????????????????????????????????? | | ??????????????????????????????????????? | | ??????????????????????????????????????? | | ??????????????????????????????????????? | | ??????????????????????????????????????? | | ??????????????????????????????????????? | | ??????????????????????????????????????? | | ??????????????????????????????????????? | +----------------------------------------------------+ Best States ------------- Heat Dissipation 25 Energy Generation 14 Energy Capacity 160 Matter Stores 300 Matter Capacity 300 Sight Range 16 Robot Scan Range 14 Terrain Scan Density 10 Resistance: KI 35 Resistance: TH 35 Resistance: EX 35 Resistance: EM 35 Resistance: I 35 Resistance: S 35 Resistance: P 35 Propulsion Shielding 33 Evasion (%) 55 Targeting Accuracy 5 Offensive Hacking 20 Item Schematics ----------------- None Robot Schematics ------------------ None Fabricated ------------ Nothing Repaired ---------- Nothing Studied --------- None Alien Tech Used ----------------- None Achievements -------------- None Challenges ------------ None Game ------ Seed AuthchipVoltaicAccelerator Manual? 0 Play Time 00:06:31 Cumulative 52.4 hours Start 2025.12.14 @ 22:11:11 End 2025.12.14 @ 22:17:01 Sessions 1 Manual Loads 0 Difficulty Explorer Special Mode None Game No. 47 Rogue 0 Adventurer 2 Explorer 45 Win Type - Total 0 Types 0/0/0/0/0/0/0/0/0/0 Lore% 13 Gallery% 39 Achievement% 23 Wizard Run 0 Options --------- Layout 0 ASCII 0 Keyboard 0 Movement Numpad Keybinds 1 Fullscreen 2 Font 36/Smallcaps Map View 38x25 Zoom Use 100% Tactical HUD 1 Map Filters NONE Filters NONE Steam 1 RUN: a1b616ad-af7b-44c1-930b-65642c2a7d19